bitfinex/quotes_SOLUSD_20250525
["timestamp","ask_amount","ask_price","bid_price","bid_amount"]
[1748142097010,13.31013973,172.3,172.26,13.31013973]
[1748142097310,26.0,172.36,172.27,13.31013973]
[1748142097495,13.31013973,172.33,172.28,268.01013973]
[1748142097906,0.14216157,172.37,172.28,268.01013973]
[1748142098105,13.31013973,172.33,172.28,51.19013973]
[1748142098305,13.31013973,172.33,172.29,13.31013973]
[1748142098490,13.31013973,172.33,172.3,34.74]
[1748142099318,0.14216157,172.37,172.3,34.74]
[1748142099614,13.31013973,172.33,172.3,34.74]
[1748142100018,0.14216157,172.37,172.3,34.74]
[1748142100312,13.31013973,172.33,172.3,34.74]
[1748142100696,13.31013973,172.32,172.3,34.74]
[1748142101928,13.31013973,172.31,172.23,1.5972]
[1748142102111,13.31013973,172.27,172.24,34.74]
[1748142102293,13.31013973,172.28,172.25,34.74]
[1748142103302,18.79181043,172.34,172.25,34.74]
[1748142103609,13.31013973,172.29,172.25,34.74]
[1748142103795,13.31013973,172.28,172.25,34.74]
[1748142104522,13.31013973,172.28,172.23,84.0972]
[1748142104523,13.31013973,172.27,172.26,34.74]
[1748142105534,13.31013973,172.27,172.22,82.5]
[1748142105709,26.56421043,172.31,172.26,34.74]
[1748142106018,13.31013973,172.27,172.26,34.74]
[1748142107437,13.31013973,172.27,172.21,13.31013973]
[1748142107715,26.56421043,172.31,172.26,254.52]
[1748142107896,26.56421043,172.31,172.27,34.74]
[1748142108796,13.31013973,172.28,172.2,6.011]
[1748142109015,13.31013973,172.26,172.21,48.05013973]
[1748142110021,26.0,172.28,172.21,48.05013973]
[1748142110214,13.31013973,172.26,172.21,48.05013973]
[1748142110394,39.31013973,172.28,172.23,13.31013973]
[1748142110593,13.31013973,172.27,172.22,13.31013973]
[1748142110824,13.31013973,172.27,172.23,34.74]
[1748142111525,13.31013973,172.28,172.23,48.05013973]
[1748142111822,13.31013973,172.29,172.24,13.31013973]
[1748142112028,13.31013973,172.3,172.25,13.31013973]
[1748142112541,0.14216157,172.32,172.24,95.81013973]
[1748142112710,13.31013973,172.29,172.24,95.81013973]
[1748142114430,2.83825957,172.41,172.25,13.31013973]
[1748142114617,13.31013973,172.3,172.25,95.81013973]
[1748142115224,13.31013973,172.32,172.27,13.31013973]
[1748142115530,26.0,172.34,172.28,34.74]
[1748142115709,13.31013973,172.31,172.28,34.74]
[1748142117534,13.31013973,172.31,172.29,254.54]
[1748142118630,27.5087,172.36,172.29,51.03013973]
[1748142118809,13.31013973,172.33,172.29,51.03013973]
[1748142119009,13.31013973,172.33,172.29,13.31013973]
[1748142119938,27.5087,172.36,172.29,13.31013973]
[1748142120145,13.31013973,172.33,172.29,13.31013973]
[1748142121342,26.0,172.36,172.29,13.31013973]
[1748142121550,13.31013973,172.34,172.29,13.31013973]
[1748142122050,13.31013973,172.34,172.29,95.81013973]
[1748142122427,13.31013973,172.33,172.29,82.5]
[1748142122627,26.0,172.36,172.29,82.5]
[1748142122827,13.31013973,172.33,172.29,82.5]
[1748142123448,26.0,172.36,172.29,82.5]
[1748142123653,26.0,172.38,172.28,34.74]
[1748142123819,13.30501435,172.35,172.28,117.24]
[1748142124828,13.30501435,172.34,172.28,117.24]
[1748142125021,13.30501435,172.33,172.28,117.24]
[1748142126048,13.30501435,172.35,172.28,117.24]
[1748142126244,26.14216157,172.38,172.28,117.24]
[1748142126547,13.30501435,172.35,172.28,117.24]
[1748142127658,13.30501435,172.35,172.29,254.5]
[1748142128562,13.30501435,172.34,172.29,254.5]
[1748142128764,13.30501435,172.34,172.29,337.0]
[1748142129055,26.14216157,172.38,172.29,337.0]
[1748142129234,13.30501435,172.35,172.29,337.0]
[1748142129430,13.30501435,172.35,172.29,82.5]
[1748142129634,26.14216157,172.38,172.29,82.5]
[1748142129834,13.30501435,172.35,172.29,82.5]
[1748142130030,13.30501435,172.34,172.29,82.5]
[1748142130572,13.30501435,172.32,172.29,82.5]
[1748142130857,13.30501435,172.32,172.3,34.74]
[1748142132041,13.30501435,172.33,172.3,34.74]
[1748142132254,13.30501435,172.34,172.3,34.74]
[1748142132552,13.30501435,172.35,172.3,34.74]
[1748142134663,13.30501435,172.34,172.3,34.74]
[1748142135091,13.30501435,172.32,172.27,88.5871]
[1748142135274,13.30501435,172.31,172.27,82.5]
[1748142135473,13.30501435,172.32,172.28,34.74]
[1748142135679,13.30501435,172.31,172.28,34.74]
[1748142136014,13.30501435,172.32,172.28,35.24]
[1748142136802,13.30501435,172.33,172.28,117.74]
[1748142137499,13.30501435,172.33,172.29,254.18]
[1748142138608,13.30501435,172.3,172.29,216.76]
[1748142138821,13.30501435,172.3,172.29,288.92]
[1748142139022,13.30501435,172.3,172.29,72.16]
[1748142139887,18.79181043,172.33,172.29,72.16]
[1748142140126,13.30501435,172.3,172.29,72.16]
[1748142141119,13.44717592,172.3,172.29,34.74]
[1748142141892,13.30501435,172.3,172.29,34.74]
[1748142143895,0.14216157,172.32,172.29,34.74]
[1748142144093,13.30501435,172.3,172.29,34.74]
[1748142146800,27.6032,172.33,172.29,34.74]
[1748142147011,13.30501435,172.3,172.29,34.74]
[1748142147622,13.30501435,172.3,172.29,288.94]
[1748142147827,13.30501435,172.3,172.29,289.44]
[1748142148326,13.30501435,172.3,172.29,72.66]
[1748142148527,13.30501435,172.31,172.29,35.24]
[1748142148700,13.30501435,172.32,172.29,35.24]
[1748142148896,13.30501435,172.33,172.29,35.24]
[1748142150109,13.30501435,172.34,172.29,35.24]
[1748142152525,26.0,172.36,172.29,35.24]
[1748142152930,13.30501435,172.33,172.29,35.24]
[1748142153113,0.14216157,172.4,172.29,35.24]
[1748142153432,13.30501435,172.35,172.29,117.74]
[1748142153612,13.30278571,172.35,172.3,13.30278571]
[1748142154835,13.30278571,172.34,172.29,131.04278571]
[1748142155617,13.30278571,172.34,172.29,117.74]
[1748142155819,13.30278571,172.34,172.29,131.04278571]
[1748142156216,13.30278571,172.32,172.29,35.24]
[1748142156416,13.30278571,172.3,172.29,0.5]
[1748142156613,13.30278571,172.3,172.29,35.24]
[1748142157726,13.30278571,172.3,172.29,289.42]
[1748142160032,59.53033457,172.35,172.29,72.66]
[1748142160033,13.30278571,172.32,172.29,72.66]
[1748142160201,13.30278571,172.32,172.29,35.24]
[1748142164737,13.30278571,172.32,172.29,0.5]
[1748142165073,13.30278571,172.32,172.3,34.74]
[1748142165950,26.0,172.35,172.3,34.74]
[1748142166319,13.30278571,172.33,172.3,34.74]
[1748142167346,26.0,172.35,172.3,34.74]
[1748142167555,13.30278571,172.33,172.31,254.36]
[1748142168445,13.30278571,172.32,172.31,254.36]
[1748142168842,26.0,172.35,172.31,37.6]
[1748142169041,13.30278571,172.34,172.31,37.6]
[1748142169232,13.30278571,172.34,172.3,34.74]
[1748142169429,13.30278571,172.36,172.31,13.30278571]
[1748142169634,13.30278571,172.36,172.31,95.80278571]
[1748142169922,13.30278571,172.37,172.31,95.80278571]
[1748142170341,13.30278571,172.36,172.31,95.80278571]
[1748142170852,13.30278571,172.38,172.33,13.30278571]
[1748142171028,13.30278571,172.38,172.34,34.74]
[1748142172236,26.0,172.41,172.34,48.04278571]
[1748142172459,13.30278571,172.39,172.34,48.04278571]
[1748142172631,13.30278571,172.38,172.34,34.74]
[1748142175550,13.30278571,172.37,172.34,34.74]
[1748142176770,13.30278571,172.38,172.34,34.74]
[1748142177237,0.14216157,172.43,172.35,13.30278571]
[1748142177435,13.30278571,172.4,172.36,216.74]
[1748142177645,13.30278571,172.4,172.36,254.34]
[1748142179858,0.14216157,172.43,172.36,37.6]
[1748142180048,13.30278571,172.4,172.35,13.30278571]
[1748142180362,13.30278571,172.4,172.36,13.30278571]
[1748142180560,34.33333333,172.45,172.38,13.30278571]
[1748142180860,34.33333333,172.45,172.32,1.6268]
[1748142180861,13.30278571,172.44,172.4,13.30278571]
[1748142181155,13.30278571,172.44,172.41,34.74]
[1748142183563,8.33333333,172.45,172.41,34.74]
[1748142183746,13.30278571,172.44,172.41,34.74]
[1748142184369,8.33333333,172.45,172.41,34.74]
[1748142184553,13.30278571,172.44,172.41,34.74]
[1748142185654,21.63611904,172.45,172.41,34.74]
[1748142185848,8.33333333,172.45,172.41,34.74]
[1748142186047,21.63611904,172.45,172.41,34.74]
[1748142187168,8.33333333,172.45,172.41,34.74]
[1748142187368,8.33333333,172.45,172.43,13.30278571]
[1748142187595,8.33333333,172.45,172.44,254.24]
[1748142187873,8.33333333,172.45,172.44,37.58]
[1748142189049,8.33333333,172.45,172.43,13.30278571]
[1748142189370,8.33333333,172.45,172.44,19.67858571]
[1748142189750,8.33333333,172.45,172.44,21.20098571]
[1748142189951,8.33333333,172.45,172.44,34.50377142]
[1748142190366,8.33333333,172.45,172.44,79.15342028]
[1748142190864,8.33333333,172.45,172.44,33.8982]
[1748142191055,8.33333333,172.45,172.44,81.92098571]
[1748142193283,8.33333333,172.45,172.44,95.22377142]
[1748142196678,1.59903123,172.45,172.44,113.87342028]
[1748142196864,8.33333333,172.49,172.46,18.64964886]
[1748142197058,5.60053333,172.49,172.48,31.95243457]
[1748142197464,5.60053333,172.49,172.48,285.99243457]
[1748142197669,13.61518767,172.61,172.48,294.21160334]
[1748142197860,26.91797338,172.61,172.57,13.30278571]
[1748142198065,11.46048767,172.61,172.58,48.00278571]
[1748142198479,11.46048767,172.61,172.6,13.30278571]
[1748142198865,24.76327338,172.61,172.55,7.8982]
[1748142199068,11.46048767,172.61,172.54,13.30278571]
[1748142199275,13.30278571,172.58,172.55,34.7]
[1748142199590,13.30278571,172.59,172.55,34.7]
[1748142200160,11.46048767,172.61,172.56,26.0]
[1748142200366,3.09268767,172.61,172.56,26.0]
[1748142200669,3.09268767,172.61,172.58,13.30278571]
[1748142201176,3.09268767,172.61,172.59,34.7]
[1748142201382,3.09268767,172.61,172.45,10.0]
[1748142201585,13.30278571,172.6,172.55,13.30278571]
[1748142201770,13.30278571,172.6,172.53,26.0]
[1748142201771,3.09268767,172.61,172.56,13.30278571]
[1748142201970,16.39547338,172.61,172.54,26.0]
[1748142202176,13.30278571,172.59,172.57,34.7]
[1748142202393,16.39547338,172.61,172.57,34.7]
[1748142202690,3.09268767,172.61,172.57,34.7]
[1748142203274,16.39547338,172.61,172.57,34.7]
[1748142203889,3.09268767,172.61,172.57,48.00278571]
[1748142204073,13.18847338,172.62,172.57,48.00278571]
[1748142204274,13.30278571,172.63,172.58,13.30278571]
[1748142204583,13.30278571,172.62,172.57,34.7]
[1748142204781,13.30278571,172.62,172.57,48.00278571]
[1748142204979,13.30278571,172.61,172.53,106.90096877]
[1748142205178,13.30278571,172.59,172.53,80.90096877]
[1748142205385,13.30278571,172.58,172.54,34.7]
[1748142205876,0.14216157,172.63,172.56,13.30278571]
[1748142206074,13.30278571,172.63,172.58,13.30278571]
[1748142206584,18.79181043,172.66,172.58,13.30278571]
[1748142206969,13.30278571,172.63,172.58,13.30278571]
[1748142207478,13.30278571,172.63,172.59,253.9]
[1748142207792,13.30278571,172.63,172.6,34.7]
[1748142208290,18.79181043,172.66,172.6,34.7]
[1748142208874,13.30278571,172.63,172.6,34.7]
[1748142209995,13.30278571,172.62,172.6,34.7]
[1748142210796,18.79181043,172.66,172.6,34.7]
[1748142210986,13.30278571,172.62,172.6,34.7]
[1748142213983,18.79181043,172.66,172.6,34.7]
[1748142214213,13.30278571,172.62,172.6,34.7]
[1748142214681,13.30278571,172.62,172.61,0.5]
[1748142214874,13.30278571,172.62,172.6,34.7]
[1748142215074,18.79181043,172.66,172.6,34.7]
[1748142215400,13.30278571,172.62,172.6,34.7]
[1748142215594,13.30278571,172.62,172.61,34.68]
[1748142217618,13.30278571,172.62,172.61,288.52]
[1748142219098,13.30278571,172.62,172.61,72.1]
[1748142219501,13.30278571,172.63,172.61,72.1]
[1748142219807,13.30278571,172.63,172.61,72.6]
[1748142220002,13.30278571,172.64,172.61,72.6]
[1748142220304,13.30278571,172.65,172.61,34.68]
[1748142220620,26.0,172.67,172.61,34.68]
[1748142220782,13.30278571,172.65,172.61,34.68]
[1748142221280,26.0,172.67,172.61,34.68]
[1748142221497,13.30278571,172.65,172.61,34.68]
[1748142222494,13.30278571,172.64,172.61,34.68]
[1748142223378,13.30278571,172.63,172.62,34.68]
[1748142225018,1.5943,172.68,172.62,34.68]
[1748142225309,13.30278571,172.67,172.62,47.98278571]
[1748142225479,13.30278571,172.66,172.62,34.68]
[1748142225682,1.5943,172.68,172.62,34.68]
[1748142225908,13.30278571,172.66,172.62,34.68]
[1748142227208,1.5943,172.68,172.62,34.68]
[1748142227384,13.30278571,172.66,172.62,34.68]
[1748142227706,13.30278571,172.66,172.63,253.84]
[1748142228089,1.5943,172.68,172.63,253.84]
[1748142228409,13.30278571,172.66,172.63,253.84]
[1748142228719,13.30278571,172.66,172.62,34.68]
[1748142228891,13.25501448,172.66,172.62,34.68]
[1748142229619,59.56912491,172.71,172.62,34.68]
[1748142229797,13.25501448,172.66,172.62,34.68]
[1748142230608,13.25501448,172.65,172.57,115.05676877]
[1748142230791,13.25501448,172.63,172.58,34.68]
[1748142231592,13.25501448,172.63,172.58,35.18]
[1748142232001,13.25501448,172.62,172.59,34.68]
[1748142232201,18.79181043,172.67,172.58,0.5]
[1748142232407,18.79181043,172.67,172.59,34.68]
[1748142232634,13.25501448,172.62,172.59,34.68]
[1748142232911,26.0,172.68,172.59,34.68]
[1748142233297,13.25501448,172.64,172.59,34.68]
[1748142233612,26.0,172.68,172.59,34.68]
[1748142233808,13.25501448,172.64,172.59,34.68]
[1748142234416,26.0,172.68,172.59,34.68]
[1748142234611,13.25501448,172.66,172.59,34.68]
[1748142235013,26.0,172.68,172.59,34.68]
[1748142235215,13.25501448,172.65,172.59,34.68]
[1748142235511,26.0,172.68,172.6,34.68]
[1748142235819,13.25501448,172.66,172.6,34.68]
[1748142236017,13.25501448,172.65,172.6,34.68]
[1748142236224,13.25501448,172.64,172.6,34.68]
[1748142236810,26.0,172.68,172.6,34.68]
[1748142237001,13.25501448,172.65,172.6,34.68]
[1748142237324,13.25501448,172.64,172.6,34.68]
[1748142237517,13.25501448,172.64,172.61,253.82]
[1748142238419,13.25501448,172.65,172.61,253.82]
[1748142238622,13.25501448,172.65,172.61,37.44]
[1748142238822,13.25501448,172.65,172.6,34.68]
[1748142239007,13.25501448,172.65,172.58,80.90096877]
[1748142239327,26.0,172.7,172.61,34.68]
[1748142239505,13.25501448,172.65,172.61,34.68]
[1748142239705,26.0,172.7,172.61,34.68]
[1748142240325,13.25501448,172.65,172.61,34.68]
[1748142241228,13.25501448,172.65,172.62,0.5]
[1748142241726,13.25501448,172.65,172.61,34.68]
[1748142242230,26.0,172.7,172.61,34.68]
[1748142242414,13.25501448,172.65,172.61,34.68]
[1748142242616,13.25501448,172.62,172.58,80.90096877]
[1748142244933,26.0,172.68,172.59,34.68]
[1748142245231,13.25501448,172.63,172.59,34.68]
[1748142245398,13.25501448,172.63,172.6,34.68]
[1748142246406,13.25501448,172.62,172.6,34.68]
[1748142246820,13.25501448,172.63,172.61,34.68]
[1748142247128,40.77731448,172.71,172.61,34.68]
[1748142247427,13.25501448,172.66,172.61,34.68]
[1748142247732,13.25501448,172.67,172.62,253.82]
[1748142248027,13.25501448,172.67,172.62,37.44]
[1748142248233,27.5223,172.71,172.61,34.68]
[1748142248435,40.77731448,172.71,172.61,34.68]
[1748142248623,27.5223,172.71,172.61,34.68]
[1748142248816,13.25501448,172.68,172.61,34.68]
[1748142250916,13.25501448,172.69,172.61,34.68]
[1748142251231,13.25501448,172.68,172.61,34.68]
[1748142251601,1.5223,172.71,172.62,0.5]
[1748142251806,13.25501448,172.68,172.62,81.40096877]
[1748142252830,13.25501448,172.68,172.62,80.90096877]
[1748142253036,1.5223,172.71,172.62,80.90096877]
[1748142253216,8.26714438,172.75,172.63,8.1869]
[1748142253536,13.25501448,172.7,172.63,115.08786877]
[1748142253735,13.25501448,172.69,172.63,115.08786877]
[1748142254203,13.25501448,172.68,172.63,89.08786877]
[1748142254409,13.25501448,172.67,172.64,34.68]
[1748142254723,13.25501448,172.67,172.63,80.90096877]
[1748142255034,13.25501448,172.67,172.65,34.68]
[1748142256239,13.25501448,172.66,172.59,8.1869]
[1748142256440,13.25501448,172.65,172.6,34.68]
[1748142256609,13.25501448,172.71,172.61,0.5]
[1748142256610,13.25501448,172.62,172.61,0.5]
[1748142257330,13.25501448,172.62,172.61,34.68]
[1748142257530,13.25501448,172.62,172.61,288.88]
[1748142258032,13.25501448,172.62,172.61,254.2]
[1748142258221,13.25501448,172.62,172.61,288.88]
[1748142260036,13.25501448,172.62,172.61,72.52]
[1748142260835,26.0,172.58,172.47,1.5573]
[1748142261144,13.25501448,172.52,172.47,1.5573]
[1748142261324,13.25501448,172.52,172.48,34.68]
[1748142262654,13.25501448,172.52,172.47,1.5573]
[1748142262843,13.25501448,172.5,172.46,6.6296]
[1748142263031,44.79181043,172.58,172.43,1.5573]
[1748142263032,13.25501448,172.48,172.43,1.5573]
[1748142263340,13.25501448,172.47,172.43,1.5573]
[1748142263536,13.25501448,172.47,172.44,34.68]
[1748142264038,13.25501448,172.45,172.38,6.6296]
[1748142264258,13.25501448,172.41,172.39,34.68]
[1748142264450,13.25501448,172.4,172.39,34.68]
[1748142264814,1.5097,172.46,172.39,34.68]
[1748142265026,13.25501448,172.43,172.39,34.68]
[1748142265241,13.25501448,172.45,172.39,34.68]
[1748142266536,26.0,172.48,172.39,34.68]
[1748142266837,13.25501448,172.45,172.4,0.5]
[1748142267641,13.25501448,172.45,172.41,254.34]
[1748142268128,26.0,172.49,172.41,254.34]
[1748142268332,13.25501448,172.46,172.4,0.5]
[1748142269848,1.5097,172.5,172.4,0.5]
[1748142270031,13.25501448,172.46,172.4,0.5]
[1748142271644,1.5097,172.5,172.4,0.5]
[1748142271847,13.25501448,172.46,172.4,0.5]
[1748142272150,1.5097,172.5,172.4,0.5]
[1748142272151,13.25501448,172.45,172.4,0.5]
[1748142272455,1.5097,172.5,172.4,0.5]
[1748142272750,13.25501448,172.46,172.4,0.5]
[1748142273727,1.5097,172.5,172.42,13.28608268]
[1748142274037,13.28608268,172.46,172.41,13.28608268]
[1748142274238,13.28608268,172.46,172.4,0.5]
[1748142274447,13.28608268,172.45,172.4,13.78608268]
[1748142275232,13.28608268,172.45,172.4,96.28608268]
[1748142275544,13.28608268,172.45,172.41,34.7]
[1748142275926,13.28608268,172.44,172.41,34.7]
[1748142276550,13.28608268,172.44,172.4,83.0]
[1748142276551,13.28608268,172.42,172.4,83.0]
[1748142276874,13.28608268,172.41,172.4,0.5]
[1748142277019,13.28608268,172.41,172.4,35.2]
[1748142277626,13.28608268,172.41,172.4,289.66]
[1748142279738,13.28608268,172.41,172.4,35.22]
[1748142280128,13.28608268,172.41,172.4,0.5]
[1748142280445,13.28608268,172.41,172.4,35.22]
[1748142281056,6.1685,172.48,172.4,35.22]
[1748142281227,13.28608268,172.41,172.4,35.22]
[1748142281630,26.0,172.45,172.4,35.22]
[1748142281836,13.28608268,172.42,172.4,35.22]
[1748142282528,13.28608268,172.45,172.4,48.50608268]
[1748142282840,13.28608268,172.46,172.41,13.28608268]
[1748142283544,13.28608268,172.46,172.4,35.22]
[1748142283545,13.28608268,172.45,172.4,48.50608268]
[1748142283733,13.28608268,172.45,172.4,117.72]
[1748142283931,13.28608268,172.45,172.4,131.00608268]
[1748142285557,13.28608268,172.46,172.41,13.28608268]
[1748142285748,26.0,172.49,172.41,13.28608268]
[1748142286058,1.5097,172.5,172.43,13.28608268]
[1748142286245,13.28608268,172.51,172.46,13.28608268]
[1748142286453,1.5041,172.55,172.47,48.00608268]
[1748142286654,13.28608268,172.52,172.47,34.72]
[1748142286834,13.28608268,172.51,172.47,34.72]
[1748142287457,13.28608268,172.51,172.48,216.62]
[1748142287646,13.28608268,172.51,172.48,254.62]
[1748142287848,18.79181043,172.54,172.48,254.62]
[1748142288034,13.28608268,172.52,172.48,254.62]
[1748142288229,18.79181043,172.54,172.48,38.0]
[1748142288554,46.29591043,172.55,172.47,34.72]
[1748142288755,13.27657324,172.52,172.47,34.72]
[1748142289263,13.27657324,172.51,172.47,34.72]
[1748142290456,13.27657324,172.49,172.43,26.0]
[1748142290641,46.29591043,172.55,172.44,34.72]
[1748142290839,13.27657324,172.5,172.44,34.72]
[1748142291358,27.5041,172.55,172.44,34.72]
[1748142291559,13.27657324,172.51,172.44,117.22]
[1748142291856,13.27657324,172.52,172.44,117.22]
[1748142292059,27.5041,172.55,172.44,117.22]
[1748142292246,13.27657324,172.52,172.44,34.72]
[1748142292568,26.0,172.55,172.42,26.0]
[1748142292569,13.27657324,172.5,172.42,26.0]
[1748142292861,13.27657324,172.49,172.43,34.72]
[1748142293061,13.27657324,172.5,172.43,34.72]
[1748142293231,13.27657324,172.49,172.42,108.5]
[1748142293436,13.27657324,172.49,172.43,34.72]
[1748142293637,13.27657324,172.49,172.42,108.5]
[1748142293861,13.27657324,172.5,172.44,34.72]
[1748142294757,18.79181043,172.54,172.44,34.72]
[1748142294954,13.27657324,172.51,172.44,117.22]
[1748142295677,26.0,172.55,172.44,117.22]
[1748142295838,13.27657324,172.52,172.44,117.22]
[1748142296674,26.0,172.55,172.45,7.6026]
[1748142296969,13.27657324,172.54,172.45,33.6026]
[1748142297142,13.27657324,172.53,172.45,33.6026]
[1748142297351,13.27657324,172.54,172.45,33.6026]
[1748142297574,13.27657324,172.54,172.46,254.58]
[1748142297754,26.0,172.57,172.46,254.58]
[1748142297945,13.27657324,172.54,172.46,254.58]
[1748142298145,1.6366,172.59,172.49,26.0]
[1748142298344,13.27657324,172.56,172.5,34.7]
[1748142300142,13.27657324,172.55,172.5,34.7]
[1748142300340,13.27657324,172.53,172.48,26.0]
[1748142300576,18.79181043,172.54,172.49,34.7]
[1748142300747,13.27657324,172.5,172.49,34.7]
[1748142301278,13.27657324,172.5,172.45,90.1026]
[1748142301440,13.27657324,172.48,172.46,34.7]
[1748142301640,13.27657324,172.49,172.46,34.7]
[1748142302044,1.5769,172.55,172.46,34.7]
[1748142302342,13.27657324,172.55,172.46,117.2]
[1748142303063,1.5769,172.59,172.46,117.2]
[1748142303271,26.0,172.59,172.48,1.5704]
[1748142303565,13.27657324,172.57,172.48,1.5704]
[1748142303769,18.79181043,172.62,172.48,84.0704]
[1748142303945,13.27657324,172.58,172.48,84.0704]
[1748142304456,26.0,172.61,172.48,84.0704]
[1748142304654,13.27657324,172.57,172.48,84.0704]
[1748142304856,13.27657324,172.56,172.49,34.7]
[1748142305655,26.0,172.61,172.49,34.7]
[1748142305966,13.27657324,172.56,172.49,34.7]
[1748142306664,26.0,172.61,172.49,34.7]
[1748142306846,13.27657324,172.57,172.49,34.7]
[1748142307052,13.27657324,172.56,172.49,60.7]
[1748142307471,13.27657322,172.56,172.5,254.5]
[1748142308779,1.5769,172.63,172.49,82.5]
[1748142309071,1.5769,172.63,172.47,6.523]
[1748142309072,0.14216157,172.55,172.47,6.523]
[1748142309374,13.27657324,172.52,172.48,34.7]
[1748142309579,13.27657324,172.53,172.48,34.7]
[1748142310247,0.14216157,172.57,172.48,34.7]
[1748142310473,13.27657324,172.54,172.48,34.7]
[1748142311365,13.27657324,172.52,172.48,34.7]
[1748142312073,13.27657324,172.53,172.48,34.7]
[1748142312964,13.27657324,172.52,172.48,34.7]
[1748142313859,13.27657324,172.5,172.45,82.5]
[1748142314065,13.27657324,172.49,172.46,34.7]
[1748142314367,13.27657324,172.5,172.46,34.7]
[1748142316076,13.27657324,172.52,172.46,34.7]
[1748142316272,13.27657324,172.51,172.46,34.7]
[1748142316460,13.27657324,172.48,172.47,34.7]
[1748142316974,13.27657324,172.49,172.47,34.7]
[1748142317578,13.27657324,172.5,172.48,254.6]
[1748142317877,13.27657324,172.5,172.48,38.08]
[1748142318472,13.27657324,172.49,172.48,38.08]
[1748142319276,13.27657324,172.49,172.43,89.023]
[1748142319457,13.27657324,172.49,172.44,34.7]
[1748142320374,18.79181043,172.53,172.44,34.7]
[1748142320555,13.27657324,172.51,172.44,34.7]
[1748142320956,26.0,172.54,172.44,34.7]
[1748142321171,13.27657324,172.51,172.44,34.7]
[1748142322559,13.27657324,172.49,172.44,34.7]
[1748142322886,13.27657324,172.5,172.44,34.7]
[1748142324093,13.27657324,172.49,172.43,89.023]
[1748142324252,13.27657324,172.49,172.44,34.7]
[1748142324451,13.27657324,172.48,172.44,34.7]
[1748142324668,13.27657324,172.46,172.41,108.5]
[1748142324979,13.27657324,172.46,172.45,34.7]
[1748142325475,13.27657324,172.47,172.45,34.7]
[1748142325655,13.27657324,172.46,172.45,34.7]
[1748142325854,13.27657324,172.46,172.4,84.5035]
[1748142326070,13.27657324,172.45,172.41,34.7]
[1748142326781,18.79181043,172.5,172.4,84.5035]
[1748142326782,13.27657324,172.44,172.4,84.5035]
[1748142326956,1.5769,172.55,172.42,34.7]
[1748142327159,13.27657324,172.51,172.42,34.7]
[1748142327467,13.27657324,172.51,172.43,254.62]
[1748142328664,13.27657324,172.51,172.44,0.5]
[1748142328978,13.27657324,172.52,172.44,0.5]
[1748142329163,13.27657324,172.52,172.44,26.5]
[1748142329363,13.27657324,172.52,172.45,26.0]
[1748142329879,13.27657324,172.51,172.45,26.0]
[1748142330980,13.27657324,172.5,172.45,26.0]
[1748142331174,1.5769,172.55,172.44,0.5]
[1748142331175,13.27657324,172.49,172.46,34.7]
[1748142332087,13.27657324,172.5,172.46,34.7]
[1748142332585,13.27657324,172.5,172.44,0.5]
[1748142332768,13.27657324,172.5,172.45,34.7]
[1748142332970,13.27657324,172.46,172.44,0.5]
[1748142333183,13.27657324,172.45,172.44,0.5]
[1748142333378,13.27657324,172.5,172.44,35.2]
[1748142334168,13.27657324,172.48,172.44,35.2]
[1748142334494,13.27657324,172.45,172.44,0.5]
[1748142334702,13.27657324,172.45,172.44,35.2]
[1748142335279,13.27657324,172.45,172.44,34.7]
[1748142337568,13.27657324,172.45,172.44,289.36]
[1748142338796,1.635,172.48,172.44,289.36]
[1748142338991,13.27657324,172.45,172.44,289.36]
[1748142339194,6.1338,172.5,172.44,289.36]